Cogmind - Beta 11.1 @@@ ROGUE MODE // 2022.10.03 @ 23:43:26 Player: DuckBoy Result: Destroyed by G-47 Trooper with Particle Gun Performance ------------- Evolutions (0) 0 Regions Visited (2) 400 Robots Destroyed (27) 135 Value Destroyed (726) 726 Prototype IDs (0) 0 Alien Tech Used (0) 0 Bonus (0) 0 TOTAL SCORE: 1261 Bonus ------- None Cogmind --------- Core Integrity 0/250 Matter 300/300 Energy 246/250 System Corruption 0% Temperature Cool (11) Movement Walking (120) Location -10/Mines Parts ------- > --- POWER (1) -------- Ion Engine > --- PROPULSION (2) --- Aluminum Leg Aluminum Leg > --- UTILITY (2) ------ Medium Storage Unit Visual Processing Unit > --- WEAPON (2) ------- Medium Laser Small Laser > --- INVENTORY (10) --- Aluminum Leg Aluminum Leg Aluminum Leg Aluminum Leg Large Storage Unit Sensor Array Hacking Suite Grenade Launcher Grenade Launcher Peak State ------------ > --- POWER ------------ Ion Engine > --- PROPULSION ------- Aluminum Leg Aluminum Leg > --- UTILITY ---------- Medium Storage Unit Visual Processing Unit > --- WEAPON ----------- Medium Laser Small Laser > --- INVENTORY -------- Ion Engine Aluminum Leg Aluminum Leg Aluminum Leg Aluminum Leg Large Storage Unit Medium Laser Small Laser Grenade Launcher Grenade Launcher [Rating: 9] Favorites ----------- Power Ion Engine Engine Ion Engine Propulsion Aluminum Leg Leg Aluminum Leg Utility Medium Storage Unit Storage Medium Storage Unit Processor Visual Processing Unit Weapon Medium Laser Energy Gun Medium Laser Build | -11 -10 -10 ------- Run | Scr Mat Min Slots Evolved . | . . . Power . | . . . Propulsion . | . . . Utility . | . . . Weapon . | . . . Parts Attached 16 | 6 10 . Power 3 | 1 2 . Engine 3 | 1 2 . Core . | . . . Reactor . | . . . Propulsion 5 | 2 3 . Treads . | . . . Leg 5 | 2 3 . Wheel . | . . . Hover . | . . . Flight . | . . . Utility 3 | 1 2 . Device . | . . . Storage 2 | 1 1 . Processor 1 | . 1 . Hackware . | . . . Protection . | . . . Artifact . | . . . Weapon 5 | 2 3 . Energy Gun 5 | 2 3 . Energy Cannon . | . . . Ballistic Gun . | . . . Ballistic Cannon . | . . . Launcher . | . . . Special Weapon . | . . . Impact Weapon . | . . . Slashing Weapon . | . . . Piercing Weapon . | . . . Special Melee Weapon . | . . . Unidentified Prototypes . | . . . Parts Lost 3 | . 3 . Power 2 | . 2 . Propulsion . | . . . Utility . | . . . Weapon 1 | . 1 . Highest Loss Streak 2 | . 2 . To Critical Strikes . | . . . Average Slot Usage (%) 97 | . 96 100 Engine 13 | . 13 14 Leg 28 | . 28 28 Storage 14 | . 14 14 Processor 11 | . 10 14 Energy Gun 28 | . 28 28 Naked Turns . | . . . Heaviest Build 18 | 13 18 18 Greatest Support 20 | 20 20 20 Greatest Overweight (x) 1 | 1 . . Average Overweight (x) . | . . . Largest Inventory Capacity 10 | 8 10 10 Average Capacity 9 | 7 9 10 Most Carried 10 | 2 10 9 Average Carried 8 | 1 8 9 Final Capacity 10 | 8 10 10 Final Carried 9 | 2 9 9 Class Distribution -------------------- 62% | Mutant 37% | Scavenger-Mutant Dominant Class ---------------- Mutant | -10/Materials Scavenger-Mutant | -10/Mines Resources | -11 -10 -10 ----------- Run | Scr Mat Min Matter Collected 355 | 207 138 10 Remotely . | . . . Salvage Created 888 | . 771 117 Parts 51 | . 41 10 Haulers Intercepted . | . . . Recyclers Shooed . | . . . Parts Field Recycled . | . . . Retrieved Matter . | . . . Parts Self-Destructed . | . . . Prevented . | . . . Kills | -11 -10 -10 ------- Run | Scr Mat Min Combat Hostiles Destroyed 23 | . 18 5 Guns 22 | . 17 5 Classes Destroyed 5 | . 5 . Worker 1 | . 1 . Operator 1 | . 1 . Watcher 2 | . 2 . Swarmer 6 | . 3 3 Grunt 17 | . 15 2 Best Kill Streak 6 | . 6 3 Combat Bots Only 6 | . 6 3 Max Kills in Single Turn 2 | . 2 1 Gunslinging 1 | . 1 . Exploded . | . . . Melee . | . . . Uniques/NPCs Destroyed . | . . . Combat | -11 -10 -10 -------- Run | Scr Mat Min Damage Taken 1020 | . 836 184 Core 264 | . 190 74 Absorbed by Shields . | . . . Core Remaining (%) 100 | 100 . . Volleys Fired 94 | . 84 10 Largest 2 | . 2 2 Hottest 90 | . 90 90 Shots Fired 186 | . 166 20 Gun 186 | . 166 20 Cannon . | . . . Launcher . | . . . Special . | . . . Kinetic . | . . . Thermal 186 | . 166 20 Explosive . | . . . Electromagnetic . | . . . Robot Hit Streak 12 | . 12 8 Robot Miss Streak 4 | . 4 1 Penetration Max . | . . . Secondary Targets 3 | . 3 . Max Gunslinging Chain 1 | . 1 . Shots Hit Robots 118 | . 104 14 Core Hits 50 | . 42 8 Critical Kills . | . . . Critical Parts Destroyed . | . . . Critical Strikes 9 | . 8 1 Burn 9 | . 8 1 Melee Attacks . | . . . Impact . | . . . Slashing . | . . . Piercing . | . . . Sneak Attacks . | . . . Combat Hostiles . | . . . Follow-up Attacks . | . . . Damage Inflicted 1397 | . 1217 180 Guns 1397 | . 1217 180 Cannons . | . . . Explosions . | . . . Melee . | . . . Ramming . | . . . Kinetic . | . . . Thermal 1397 | . 1217 180 Explosive . | . . . Electromagnetic . | . . . Impact . | . . . Slashing . | . . . Piercing . | . . . Highest Corruption . | . . . Average Corruption . | . . . Corruption Purged . | . . . Corruption Blocked . | . . . Overload Shots . | . . . Overflow Damage . | . . . Projectiles . | . . . Explosions . | . . . Melee . | . . . Knockbacks . | . . . Impact . | . . . Kinetic . | . . . Secondary . | . . . Self-Inflicted Damage . | . . . Shots . | . . . Rammed . | . . . Targets Rammed . | . . . Kicked . | . . . Crushed . | . . . Highest Temperature 316 | . 316 243 Average Temperature 99 | . 99 100 Received Heat Transfer 507 | . 435 72 Effects 2 | . 2 . Interference 2 | . 2 . Siege Activations . | . . . Robots Corrupted . | . . . Combat Hostiles . | . . . Parts Fried . | . . . Impact Corruptions . | . . . Robots Melted 1 | . 1 . Combat Hostiles 1 | . 1 . Parts Melted 9 | . 7 2 Heat Transferred 4360 | . 3791 569 Parts Sabotaged . | . . . Parts Stolen . | . . . Parts Stripped . | . . . Power Chain Reactions . | . . . Missiles Intercepted . | . . . Alert | -11 -10 -10 ------- Run | Scr Mat Min Peak Influence 349 | . 349 120 Initial . | . . . Average 168 | . 193 103 Maximum Alert Level 1 | . 1 . Low Security (%) 55 | 100 43 100 Level 1 44 | . 56 . Level 2 . | . . . Level 3 . | . . . Level 4 . | . . . Level 5 . | . . . High Security . | . . . Max Security . | . . . Squads Dispatched 6 | . 6 . Investigation 4 | . 4 . Extermination . | . . . Reinforcement 2 | . 2 . Assault . | . . . Garrison . | . . . Intercept . | . . . Searches Triggered . | . . . Construction Impeded . | . . . Haulers Reinforced . | . . . Active Scanning Responses . | . . . Cargo Convoy Interrupts . | . . . Stealth | -11 -10 -10 --------- Run | Scr Mat Min Distress Signals 1 | . 1 . Communications Jammed . | . . . Distress Signals . | . . . Times Spotted 35 | . 29 6 Peak Tracking Total 5 | . 5 2 Tactical Retreats 1 | . 1 . Traps | -11 -10 -10 ------- Run | Scr Mat Min Traps Triggered 3 | . 3 . Indirectly . | . . . Trap Hack Attempts . | . . . Triggered . | . . . Disarmed . | . . . Reprogrammed . | . . . Reused . | . . . Traps Extracted . | . . . Installed . | . . . Triggered . | . . . Machines | -11 -10 -10 ---------- Run | Scr Mat Min Machines Disabled . | . . . Max in Single Turn . | . . . Machines Sabotaged . | . . . Garrisons Compromised . | . . . Overloaded Fab Kills . | . . . Hacking | -11 -10 -10 --------- Run | Scr Mat Min Machines Accessed 6 | . 6 . Terminals 6 | . 6 . Fabricators . | . . . Repair Stations . | . . . Recycling Units . | . . . Scanalyzers . | . . . Garrison Access . | . . . Total Hacks 19 | . 19 . Successful 8 | . 8 . Failed 11 | . 11 . Catastrophic 1 | . 1 . Database Lockouts . | . . . Manual 14 | . 14 . Terminals 19 | . 19 . Fabricators . | . . . Repair Stations . | . . . Recycling Units . | . . . Scanalyzers . | . . . Garrison Access . | . . . Terminal Hacks 8 | . 8 . Part Schematic 1 | . 1 . Robot Schematic 2 | . 2 . Robot Analysis 1 | . 1 . Unreport Threat 2 | . 2 . Surveillance Status 1 | . 1 . Zone Layout 1 | . 1 . Fabricator Hacks . | . . . Repair Station Hacks . | . . . Recycling Unit Hacks . | . . . Scanalyzer . | . . . Garrison Access Hacks . | . . . Unauthorized Hacks . | . . . Terminals . | . . . Fabricators . | . . . Repair Stations . | . . . Recycling Units . | . . . Scanalyzers . | . . . Garrison Access . | . . . Data Cores Recovered . | . . . Used . | . . . Hacking Detections 6 | . 6 . Full Trace Events 3 | . 3 . Feedback Events . | . . . Feedback Blocked . | . . . Robot Schematics Acquired 1 | . 1 . Robots Built . | . . . Authchips . | . . . Time . | . . . Total Robot Build Rating . | . . . Part Schematics Acquired 1 | . 1 . Parts Built . | . . . Authchips . | . . . Time . | . . . Total Part Build Rating . | . . . Parts Repaired . | . . . Time . | . . . Parts Recycled . | . . . Recycled Matter . | . . . Retrieved Matter . | . . . Retrieved Components . | . . . Parts Scanalyzed . | . . . Part Schematics Acquired . | . . . Parts Damaged . | . . . Bothacking | -11 -10 -10 ------------ Run | Scr Mat Min Used RIF Installer . | . . . Robots Hacked . | . . . Non-combat . | . . . Combat . | . . . Robot Hacks Applied . | . . . Relay Couplers Released . | . . . Fabnet Peak Effective % . | . . . Robots Rewired . | . . . Allies Hacked . | . . . Hacks Repelled . | . . . Allies | -11 -10 -10 -------- Run | Scr Mat Min Total Allies . | . . . Largest Group . | . . . Highest-Rated Group . | . . . Highest-Rated Ally . | . . . Total Orders . | . . . Ally Attacks . | . . . Total Damage . | . . . Kills . | . . . Allies Corrupted . | . . . Allies Melted . | . . . Intel | -11 -10 -10 ------- Run | Scr Mat Min Robot Analysis Total 1 | . 1 . Derelict Logs Recovered 2 | . . 2 Drone Launches . | . . . Drone Recoveries . | . . . Exploration | -11 -10 -10 ------------- Run | Scr Mat Min Turns Passed 1395 | 70 1087 238 Spaces Moved 811 | 52 587 172 Core 5 | 5 . . Treads . | . . . Legs 806 | 47 587 172 Wheels . | . . . Hover . | . . . Flight . | . . . Fastest Speed 50 | 50 120 120 Average Speed 119 | 114 120 120 Slowest Speed 120 | 120 120 120 Overloaded Moves . | . . . Propulsion Burnouts . | . . . Robots Hopped . | . . . Cave-ins Triggered . | . . . Exploration Rate (%) 38 | 4 69 42 Regions Visited 2 Branch Regions 1 Pre-discovered Areas 1 | . . 1 Known Exits Taken . | . . . Unknown Exits Taken 2 | 1 1 . Scrap Searched . | . . . Spaces Dug . | . . . Terrain Destroyed . | . . . Melee . | . . . Projectile . | . . . AOE . | . . . Terrain Rammed . | . . . Walls Destroyed . | . . . Machines Disabled . | . . . Actions | -11 -10 -10 --------- Run | Scr Mat Min Total 1044 | 59 801 184 Wait 111 | . 109 2 Move 809 | 51 586 172 Hop . | . . . Pick Up 11 | 2 9 . Fast Attach 10 | 6 4 . Attach 2 | . 2 . Detach . | . . . Swap 4 | . 4 . Drop 3 | . 3 . Fire 94 | . 84 10 Melee . | . . . Ram . | . . . Kick . | . . . Crush . | . . . Escape Stasis . | . . . Rewire . | . . . Trap . | . . . Miscellaneous . | . . . Route ------- -11/Scrapyard -10/Materials (discovered 4 exits: [*Mat x3] / [*Min]) -10/Mines (discovered 2 exits: [*Mat x2]) History --------- Turn | Location | Event 34 | -11/Scrapyard | Discovered new exit (range 15) 71 | -11/Scrapyard | Entered Materials 308 | -10/Materials | Build established: Mutant 436 | -10/Materials | Discovered new exit (range 11) 617 | -10/Materials | Discovered new exit (range 18) 809 | -10/Materials | Discovered new exit (range 4) 855 | -10/Materials | Core integrity fell below 50% 1104 | -10/Materials | Discovered new exit (range 15) 1158 | -10/Materials | Entered Mines 1160 | -10/Mines | Core integrity fell below 20% 1179 | -10/Mines | Build established: Scavenger-Mutant 1201 | -10/Mines | Discovered new exit (range 17) 1327 | -10/Mines | Learned 4 Materials zone layouts 1372 | -10/Mines | Discovered new exit (range 5) 1396 | -10/Mines | Destroyed by G-47 Trooper with Particle Gun Last Messages --------------- 01201_ EXIT=FOUND 01203_ K-01 Serf collects debris. 01227_ G-47 Trooper suffers critical hit (Burn). 01227_ Aluminum Leg melted. 01227_ G-47 Trooper destroyed. 01228_ K-01 Serf collects debris. 01233_ K-01 Serf destroyed. 01239_ G-34 Mercenary destroyed. 01241_ R-06 Scavenger collects Lgt. Ion Engine. 01245_ Acquired derelict log, extracted data. World map updated: -9/Materials. 01245_ R-06 Scavenger collects Med. Matter Pod. 01251_ R-06 Scavenger collects Particle Gun. 01255_ R-06 Scavenger collects Sml. Laser. 01257_ R-06 Scavenger collects Heat Sink. 01262_ K-01 Serf collects debris. 01327_ Acquired derelict log, extracted data. Data stored: Materials zone layouts (x4). 01328_ K-01 Serf collects debris. 01372_ EXIT=FOUND Map ----- +----------------------------------------------------+ | ???????????????????????????????????????? | | ?????????????????????????? ????? ??????? | | ?????????????????????????? ????? ??????? | | ?????????????????????????? ????? ??????? | | ?????????###?????????????? ????? ?????? | | ????????## #????????????? ????? ?????? | | ????????# ##??????????? ????? ?????? | | ????????# ##?????????? ????? ??? #? | | ????????# ##????????# ????? """ #? | | ?????????# ##??????? #????? #? | | ??????????# ##??????# #????? """ #? | | ??????????## #??????# #????? """ #? | | ???????????## ##?????# #????? """ ?? | | ????????????# ## ###???# #????? ?? | | ???????###### ### ##??# #????? < ??? | | ???????# #?# #??# #?????# #??? | | ???????# ######?# #??# #?????# #??? | | ?????### ######## ##?# #?????# #### | | ?????# t### ####### | | ?????# g #### | | ?????# ######## g #??? | | ?????# ##?????## ############??? | | ??#### ##?????# #?????????????? | | ?## #????## ##?????????????? | | ?# ###### ####??????????????? | | ?# ## ## @ ##?????????????????? | | ?# ### ### #### #??????????????????? | | ?# ### ### #??## ##??????????????????? | | ?# ####???????????????????? | | ?# ##########????????#?????????????????? | | ?# #????????????????## ????????????????? | | ?# #??????????#??#### #####???????????? | | ?# #????????? # ! #???????????? | | ?# #????####! #???????????? | | ?# ###### #?# #???????????? | | ?# ### ! #??# #???????????? | | ?######## #????????###??# #???????????? | | ??????### #?????????????# #???????????? | | ??????# #?????????????# #???????????? | | ??????# ##????????###??# #???????????? | | ??????# #?####???? #?## ##??????????? | | ????### ### ##???# #?# ##?????????? | | ???## ## ##??# #?# ###???????? | | ???# ##?# #?# #???????? | | ???# < #?# ###% # #???????? | | ???# ### ## # #???????? | | ???# #^^ ##??????? | | ???# #### ^## #??????? | | ???## ##??# #??????? | | ????### ##???# ##### #??????? | +----------------------------------------------------+ Best States ------------- Heat Dissipation 25 Energy Generation 10 Energy Capacity 250 Matter Stores 300 Matter Capacity 300 Sight Range 18 Terrain Scan Density 10 Evasion (%) 55 Item Schematics ----------------- Lrg. Storage Unit | -10/Materials | Hacked Robot Schematics ------------------ M-13 Machinist | -10/Materials | Hacked Fabricated ------------ Nothing Alien Tech Used ----------------- None Achievements -------------- None Challenges ------------ None Game ------ Seed EtherialFissionRecalibrator Manual? 0 Play Time 00:10:28 Cumulative 204.0 hours Start 2022.10.03 @ 23:34:02 End 2022.10.03 @ 23:43:26 Sessions 1 Manual Loads 0 Difficulty Rogue Special Mode None Game No. 154 Rogue 151 Adventurer 3 Explorer 0 Win Type - Total 2 Types 1/0/1/0/0/0/0/0/0 Lore% 63 Gallery% 65 Achievement% 55 Wizard Run 0 Options --------- ASCII 0 Keyboard 0 Movement Numpad Keybinds 0 Fullscreen 1 Font 18/SmallcapsGlow Map View 76x50 Tactical HUD 1 Map Filters NONE Filters NONE Steam 1 RUN: 2d692761-57e9-49a8-83bf-c9af7415bb35